bitfinex-derivatives/quotes_SOLF0:USTF0_20251002
["timestamp","ask_amount","ask_price","bid_price","bid_amount"]
[1759404836665,3.15757069,225.49,225.44,3.9902]
[1759404836866,3.15757069,225.48,225.45,7.84]
[1759404837071,7.74,225.51,225.44,11.8302]
[1759404837265,3.15617521,225.5,225.44,11.8302]
[1759404837470,10.89617521,225.49,225.45,7.84]
[1759404837673,7.74,225.51,225.45,7.84]
[1759404837972,7.74,225.49,225.45,7.84]
[1759404838172,3.15496122,225.49,225.45,7.84]
[1759404838472,7.74,225.49,225.45,10.52]
[1759404838669,10.89496122,225.49,225.45,10.52]
[1759404838866,7.74,225.49,225.45,10.52]
[1759404839773,10.89496122,225.49,225.45,10.52]
[1759404840172,7.74,225.49,225.45,10.52]
[1759404842174,7.74,225.49,225.46,7.84]
[1759404842377,10.89198509,225.51,225.46,7.84]
[1759404842569,7.74,225.51,225.45,2.68]
[1759404843673,7.74,225.51,225.45,6.6699]
[1759404844179,7.74,225.51,225.45,14.5099]
[1759404844979,11.7291,225.51,225.45,14.5099]
[1759404848275,11.7291,225.51,225.46,2.15]
[1759404848478,7.74,225.5,225.47,7.84]
[1759404850583,3.9891,225.51,225.47,7.84]
[1759404850781,7.74,225.5,225.47,7.84]
[1759404850980,3.9891,225.51,225.47,7.84]
[1759404851780,7.74,225.5,225.47,7.84]
[1759404853385,11.7291,225.51,225.47,7.84]
[1759404853576,11.7291,225.51,225.46,2.15]
[1759404853784,7.74,225.51,225.46,2.15]
[1759404853979,7.74,225.51,225.47,7.84]
[1759404854285,7.74,225.53,225.47,7.84]
[1759404855587,3.9889,225.52,225.47,7.84]
[1759404855780,7.74,225.51,225.47,7.84]
[1759404857381,3.9889,225.52,225.47,7.84]
[1759404857584,7.74,225.51,225.47,7.84]
[1759404857783,3.9885,225.54,225.47,7.84]
[1759404857984,7.74,225.53,225.47,7.84]
[1759404858891,3.989,225.51,225.47,7.84]
[1759404859194,7.74,225.5,225.47,7.84]
[1759404859388,7.74,225.54,225.46,2.15]
[1759404859585,10.86875093,225.54,225.46,2.15]
[1759404859984,7.74,225.49,225.46,2.15]
[1759404860184,3.9893,225.5,225.46,2.15]
[1759404860391,9.86624955,225.52,225.45,2.68]
[1759404860583,107.92,225.51,225.45,2.68]
[1759404860784,7.74,225.49,225.45,10.52]
[1759404861287,7.74,225.48,225.45,10.52]
[1759404862090,7.74,225.5,225.46,7.84]
[1759404862487,111.909,225.51,225.46,7.84]
[1759404862690,7.58,225.5,225.46,7.84]
[1759404862890,111.909,225.51,225.46,7.84]
[1759404863295,11.5692,225.5,225.46,7.84]
[1759404863483,11.5692,225.5,225.45,2.68]
[1759404863484,7.58,225.49,225.45,2.68]
[1759404863688,3.9892,225.5,225.45,2.68]
[1759404863888,7.81,225.49,225.45,9.88]
[1759404864090,3.9892,225.5,225.45,9.88]
[1759404864395,3.9892,225.5,225.46,2.15]
[1759404864797,7.81,225.49,225.46,2.15]
[1759404865395,7.81,225.49,225.46,9.35]
[1759404866399,7.81,225.49,225.47,7.2]
[1759404868201,3.9891,225.51,225.47,7.2]
[1759404868405,7.81,225.5,225.46,2.15]
[1759404868702,3.9891,225.51,225.46,9.35]
[1759404868890,7.81,225.5,225.46,9.35]
[1759404869094,3.9891,225.51,225.46,9.35]
[1759404869295,7.81,225.49,225.46,9.35]
[1759404869491,3.13601857,225.5,225.46,2.15]
[1759404870101,7.81,225.49,225.46,2.15]
[1759404870302,7.81,225.49,225.46,9.35]
[1759404870602,3.13755972,225.5,225.46,2.15]
[1759404870801,109.25891774,225.52,225.46,2.15]
[1759404871004,3.1375849,225.51,225.46,2.15]
[1759404871199,3.1375849,225.5,225.46,2.15]
[1759404871407,109.25891774,225.52,225.46,2.15]
[1759404871408,7.81,225.48,225.46,2.15]
[1759404872000,3.9894,225.49,225.46,2.15]
[1759404872300,7.81,225.47,225.46,2.15]
[1759404872800,10.95107564,225.47,225.46,2.15]
[1759404876302,12.05941178,225.47,225.46,2.15]
[1759404876497,12.05939884,225.47,225.46,2.15]
[1759404877709,7.81,225.46,225.36,1.35891774]
[1759404877904,4.24939884,225.45,225.39,7.2]
[1759404878209,3.14107564,225.44,225.4,1.35891774]
[1759404878413,3.14107564,225.43,225.4,5.34971774]
[1759404878610,3.14107564,225.42,225.41,7.2]
[1759404880202,5.0982232,225.46,225.41,7.2]
[1759404880403,5.0982232,225.46,225.4,5.34971774]
[1759404880404,3.15863454,225.45,225.4,5.34971774]
[1759404880605,3.15863454,225.44,225.41,7.2]
[1759404880803,7.81,225.45,225.4,5.34971774]
[1759404881005,3.15844261,225.44,225.4,5.34971774]
[1759404881206,7.81,225.45,225.4,5.34971774]
[1759404881506,3.15813992,225.44,225.4,5.34971774]
[1759404881703,7.81,225.45,225.41,7.2]
[1759404881907,3.15813992,225.44,225.4,5.34971774]
[1759404882209,7.81,225.45,225.4,5.34971774]
[1759404882409,3.15546944,225.44,225.41,7.2]
[1759404882609,7.81,225.45,225.41,7.2]
[1759404882813,3.15546944,225.44,225.41,7.2]
[1759404883110,7.81,225.45,225.41,7.2]
[1759404883310,3.15536289,225.44,225.41,7.2]
[1759404883508,7.81,225.45,225.41,7.2]
[1759404883705,3.15524608,225.44,225.41,7.2]
[1759404883908,7.81,225.45,225.41,7.2]
[1759404884105,3.15524608,225.44,225.41,7.2]
[1759404884411,7.81,225.45,225.4,5.34971774]
[1759404884614,3.15499621,225.44,225.4,5.34971774]
[1759404884804,7.81,225.45,225.41,7.2]
[1759404885114,3.15499621,225.44,225.4,5.34971774]
[1759404885407,7.81,225.45,225.4,5.34971774]
[1759404885612,3.15486019,225.44,225.41,7.2]
[1759404885812,7.81,225.45,225.4,5.34971774]
[1759404886020,3.15486019,225.44,225.4,5.34971774]
[1759404886312,7.81,225.45,225.4,5.34971774]
[1759404886508,3.1546431,225.44,225.41,7.2]
[1759404886812,7.81,225.45,225.41,7.2]
[1759404887009,3.1546431,225.44,225.4,5.34971774]
[1759404887213,7.81,225.45,225.41,7.2]
[1759404887419,3.15443869,225.44,225.41,7.2]
[1759404887711,7.81,225.45,225.41,7.2]
[1759404888017,3.15443869,225.44,225.4,5.34971774]
[1759404888314,7.81,225.45,225.4,5.34971774]
[1759404888519,3.15432232,225.44,225.4,5.34971774]
[1759404888712,3.9895,225.48,225.4,1.35891774]
[1759404888913,3.15432232,225.47,225.42,1.35891774]
[1759404889111,3.15432232,225.46,225.43,7.2]
[1759404889313,3.9895,225.48,225.43,3.9903]
[1759404889613,3.15409317,225.47,225.43,3.9903]
[1759404889813,3.15409317,225.46,225.43,3.9903]
[1759404890014,11.7995,225.48,225.44,7.2]
[1759404890210,3.15409244,225.47,225.44,7.2]
[1759404890419,3.15409244,225.46,225.44,7.2]
[1759404890613,3.9891,225.51,225.45,7.2]
[1759404890814,10.9639757,225.5,225.47,7.2]
[1759404891009,3.1539757,225.49,225.47,7.2]
[1759404891210,3.1539757,225.48,225.47,7.2]
[1759404895220,11.0239757,225.48,225.41,7.27]
[1759404895422,3.1539757,225.47,225.41,7.27]
[1759404895724,11.0239757,225.46,225.4,1.35891774]
[1759404895923,7.87,225.46,225.41,7.27]
[1759404896729,7.87,225.46,225.42,7.27]
[1759404896919,7.87,225.46,225.43,7.27]
[1759404897923,7.87,225.46,225.42,5.34941774]
[1759404898130,11.8592,225.5,225.44,1.35891774]
[1759404898323,7.87,225.48,225.44,8.62891774]
[1759404898528,3.15499842,225.47,225.44,1.35891774]
[1759404898724,7.87,225.49,225.45,7.27]
[1759404898923,11.02516101,225.48,225.45,7.27]
[1759404899129,3.15516101,225.47,225.45,7.27]
[1759404899327,7.87,225.48,225.45,7.27]
[1759404899625,11.02536388,225.47,225.42,1.35891774]
[1759404899828,7.87,225.47,225.43,7.27]
[1759404900132,7.87,225.47,225.42,1.35891774]
[1759404900428,7.87,225.47,225.43,7.27]
[1759404901123,7.87,225.47,225.42,5.34941774]
[1759404901325,7.87,225.47,225.43,7.27]
[1759404901524,7.87,225.47,225.42,5.34941774]
[1759404902125,7.87,225.47,225.43,7.27]
[1759404902427,7.87,225.47,225.42,5.34941774]
[1759404902827,7.87,225.47,225.43,7.27]
[1759404903727,7.87,225.45,225.38,1.35891774]
[1759404903926,7.87,225.43,225.38,1.35891774]
[1759404904123,7.87,225.43,225.36,7.27]
[1759404904124,11.8608,225.41,225.35,1.35891774]
[1759404904326,11.8608,225.41,225.33,7.27]
[1759404904327,3.17133004,225.4,225.33,8.62891774]
[1759404904630,3.17133004,225.4,225.33,7.27]
[1759404904631,11.04137427,225.39,225.33,7.27]
[1759404904829,7.87,225.37,225.31,1.35891774]
[1759404905037,7.87,225.35,225.31,8.62891774]
[1759404905234,7.87,225.37,225.29,1.35891774]
[1759404905428,7.87,225.35,225.29,1.35891774]
[1759404905629,3.17011368,225.34,225.29,1.35891774]
[1759404905824,7.87,225.34,225.29,1.35891774]
[1759404906238,7.87,225.33,225.29,1.35891774]
[1759404906430,7.87,225.33,225.29,8.62891774]
[1759404906735,3.9921,225.34,225.29,7.27]
[1759404906927,62.0829,225.4,225.27,1.35891774]
[1759404906928,7.87,225.33,225.27,1.35891774]
[1759404907133,7.87,225.33,225.27,8.62891774]
[1759404907329,7.87,225.33,225.27,12.62201774]
[1759404907728,7.87,225.33,225.27,8.62891774]
[1759404909037,11.8621,225.33,225.27,8.62891774]
[1759404909833,3.9918,225.36,225.29,1.35891774]
[1759404910034,3.9918,225.36,225.3,7.27]
[1759404911135,7.87,225.37,225.3,7.27]
[1759404911836,7.87,225.37,225.31,1.35891774]
[1759404913238,11.8616,225.37,225.3,8.62891774]
[1759404917642,7.87,225.37,225.31,3.9925]
[1759404918038,7.87,225.37,225.32,1.35891774]
[1759404918241,3.9911,225.39,225.33,7.27]
[1759404918535,7.87,225.38,225.32,1.35891774]
[1759404921845,7.87,225.38,225.31,5.35141774]
[1759404922143,11.8614,225.38,225.31,5.35141774]
[1759404922340,7.87,225.38,225.31,1.35891774]
[1759404922641,7.87,225.38,225.3,7.27]
[1759404923742,3.9917,225.36,225.3,7.27]
[1759404924342,7.52,225.35,225.3,7.27]
[1759404924535,3.9917,225.36,225.3,7.27]
[1759404924743,3.9917,225.36,225.29,3.9928]
[1759404924744,3.9919,225.35,225.27,3.9931]
[1759404925043,7.52,225.34,225.26,7.26]
[1759404926644,3.9922,225.33,225.26,7.26]
[1759404929142,7.52,225.34,225.24,7.26]
[1759404929343,3.9917,225.36,225.27,7.26]
[1759404930553,3.9917,225.36,225.29,3.9927]
[1759404930852,3.9917,225.36,225.29,11.2527]
[1759404933354,7.52,225.37,225.29,7.26]
[1759404934752,7.52,225.37,225.33,7.26]
[1759404935541,3.9914,225.38,225.33,7.26]
[1759404936149,7.52,225.37,225.33,7.26]
[1759404936643,3.9914,225.38,225.33,7.26]
[1759404936845,7.52,225.37,225.33,7.26]
[1759404937041,3.9914,225.38,225.33,7.26]
[1759404937650,7.52,225.37,225.33,7.26]
[1759404938349,3.9914,225.38,225.33,7.26]
[1759404938852,7.52,225.37,225.33,7.26]
[1759404939046,3.9914,225.38,225.33,7.26]
[1759404939454,7.52,225.37,225.33,7.26]
[1759404939956,3.9914,225.38,225.33,7.26]
[1759404940749,7.52,225.37,225.33,7.26]
[1759404941155,3.9914,225.38,225.33,7.26]
[1759404941456,7.52,225.37,225.33,7.26]
[1759404941659,7.52,225.37,225.32,3.9922]
[1759404941847,7.52,225.37,225.33,7.26]
[1759404942355,7.52,225.37,225.32,3.9922]
[1759404942557,7.52,225.37,225.33,7.26]
[1759404942755,7.52,225.37,225.32,3.9922]
[1759404943255,11.5109,225.41,225.35,7.26]
[1759404943457,3.16321681,225.4,225.35,7.26]
[1759404943650,7.52,225.42,225.32,2.12580776]
[1759404943852,7.52,225.4,225.32,2.12580776]
[1759404944258,3.16478455,225.39,225.32,2.12580776]
[1759404944452,7.52,225.4,225.32,2.12580776]
[1759404944652,3.16478455,225.39,225.32,6.11800776]
[1759404944853,7.52,225.4,225.32,3.9922]
[1759404945059,7.52,225.38,225.31,7.26]
[1759404946150,3.16709124,225.37,225.31,7.26]
[1759404946347,7.52,225.38,225.31,7.26]
[1759404946553,7.15873448,225.37,225.31,7.26]
[1759404946752,3.9915,225.37,225.31,7.26]
[1759404947253,3.16968885,225.36,225.31,7.26]
[1759404947560,11.5115,225.37,225.31,7.26]
[1759404947761,3.16968885,225.36,225.31,7.26]
[1759404947957,3.9915,225.37,225.31,7.26]
[1759404948263,3.16968885,225.36,225.31,7.26]
[1759404948558,10.68968885,225.35,225.3,3.9926]
[1759404948754,7.52,225.35,225.3,3.9926]
[1759404949152,7.52,225.35,225.31,7.26]
[1759404949352,7.52,225.35,225.3,3.9926]
[1759404949559,7.52,225.35,225.31,7.26]
[1759404949757,7.52,225.35,225.3,3.9926]
[1759404949958,7.52,225.35,225.31,7.26]
[1759404950159,7.52,225.35,225.3,3.9926]
[1759404950360,7.52,225.35,225.31,7.26]
[1759404950561,7.52,225.35,225.3,3.9926]
[1759404950757,3.1853738,225.34,225.3,3.9926]
[1759404950962,7.52,225.35,225.3,3.9926]
[1759404951160,10.7053738,225.34,225.28,11.253]
[1759404951356,10.7053738,225.33,225.29,7.26]
[1759404951556,7.52,225.33,225.29,7.26]
[1759404951963,7.52,225.33,225.28,3.993]
[1759404952463,7.52,225.33,225.29,7.26]
[1759404952663,7.52,225.33,225.28,3.993]
[1759404952858,7.52,225.33,225.29,7.26]
[1759404953063,7.52,225.33,225.3,7.26]
[1759404958969,7.52,225.33,225.3,11.3326]
[1759404959172,11.5415,225.37,225.31,7.34]
[1759404959366,3.19344997,225.36,225.3,3.9926]
[1759404959664,10.74344997,225.35,225.3,3.9926]
[1759404959871,10.74344997,225.34,225.31,7.34]
[1759404960168,7.55,225.34,225.3,3.9926]
[1759404960472,7.55,225.39,225.32,3.9922]
[1759404960667,3.19319299,225.38,225.32,3.9922]
[1759404960969,10.74319299,225.37,225.33,7.34]
[1759404961169,3.19319299,225.36,225.33,7.34]
[1759404961371,3.19319299,225.35,225.33,7.34]
[1759404961669,7.55,225.4,225.32,3.9922]
[1759404961868,13.16691655,225.43,225.32,3.9922]
[1759404961869,7.55,225.38,225.32,3.9922]
[1759404962070,7.55,225.36,225.32,11.3322]
[1759404962266,3.19312708,225.35,225.32,3.9922]
[1759404962466,7.55,225.4,225.33,7.34]
[1759404962660,3.1928599,225.39,225.34,2.12580776]
[1759404962858,7.55,225.46,225.35,7.34]
[1759404963061,7.55,225.44,225.35,7.34]
[1759404963263,3.1923936,225.43,225.35,7.34]
[1759404963465,3.1923936,225.42,225.35,7.34]
[1759404963666,3.1923936,225.41,225.36,3.9915]
[1759404963871,8.65847825,225.44,225.35,7.34]
[1759404964069,3.19098207,225.43,225.38,7.34]
[1759404964270,3.19098207,225.42,225.38,7.34]
[1759404964571,7.55,225.47,225.38,7.34]
[1759404964771,3.18912137,225.46,225.38,7.34]
[1759404964970,3.18912137,225.45,225.38,7.34]
[1759404965166,10.73912137,225.44,225.38,7.34]
[1759404965367,7.55,225.42,225.34,9.46580776]
[1759404965571,3.18801564,225.41,225.34,7.34]
[1759404965769,10.73812942,225.4,225.34,11.3319]
[1759404966071,3.18825866,225.39,225.34,7.34]
[1759404966373,7.55,225.37,225.34,7.34]
[1759404968167,7.55,225.38,225.31,9.46580776]
[1759404968373,3.18803553,225.37,225.31,7.34]
[1759404968573,7.55,225.38,225.31,7.34]
[1759404968773,3.18803843,225.37,225.31,7.34]
[1759404968973,7.55,225.38,225.31,7.34]
[1759404969178,3.18805601,225.37,225.31,7.34]
[1759404969370,7.55,225.38,225.31,7.34]
[1759404969569,3.18801676,225.37,225.31,7.34]
[1759404969876,7.55,225.38,225.31,7.34]
[1759404970076,3.18811693,225.37,225.31,7.34]
[1759404970271,3.1881845,225.36,225.3,3.9926]
[1759404970471,7.55,225.38,225.31,7.34]
[1759404970673,3.18828811,225.37,225.31,7.34]
[1759404970975,10.73828811,225.36,225.3,3.9926]
[1759404971172,7.55,225.36,225.31,7.34]
[1759404971379,7.55,225.36,225.3,3.9926]
[1759404971881,7.55,225.36,225.31,7.34]
[1759404972476,7.55,225.36,225.3,11.3326]
[1759404972683,3.9908,225.41,225.3,7.34]
[1759404972882,10.732448,225.4,225.31,7.34]
[1759404973082,3.182448,225.39,225.31,7.34]
[1759404973284,3.182448,225.38,225.31,7.34]
[1759404973476,3.182448,225.37,225.31,7.34]
[1759404973677,3.182448,225.36,225.31,7.34]
[1759404973882,7.55,225.4,225.31,7.34]
[1759404974082,3.18279594,225.39,225.31,7.34]
[1759404974282,3.18279594,225.38,225.31,7.34]
[1759404974482,3.18279594,225.37,225.31,7.34]
[1759404974784,7.55,225.4,225.33,3.992]
[1759404974985,3.18322244,225.39,225.33,3.992]
[1759404975184,7.55,225.37,225.34,7.34]
[1759404975381,7.55,225.42,225.34,3.9918]
[1759404975585,3.18304545,225.41,225.35,7.34]
[1759404975786,3.18304545,225.4,225.34,7.34]
[1759404975986,7.55,225.42,225.34,7.34]
[1759404976289,3.1827606,225.41,225.34,7.34]
[1759404976481,3.1827606,225.4,225.34,7.34]
[1759404976776,7.55,225.42,225.35,3.9916]
[1759404976982,3.1825163,225.41,225.35,3.9916]
[1759404977285,3.1825163,225.4,225.35,3.9916]
[1759404977487,7.55,225.42,225.36,7.34]
[1759404977684,7.55,225.45,225.36,2.12580776]
[1759404977885,3.18183264,225.44,225.37,7.34]
[1759404978080,3.18183264,225.43,225.37,7.34]
[1759404978288,11.5395,225.48,225.39,2.12580776]
[1759404978489,3.18056399,225.47,225.4,7.34]
[1759404978687,3.18056399,225.46,225.4,7.34]
[1759404978990,7.55,225.48,225.4,7.34]
[1759404979195,3.18023021,225.47,225.4,7.34]
[1759404979490,7.55,225.48,225.4,7.34]
[1759404979693,3.17864339,225.47,225.4,7.34]
[1759404979991,7.55,225.48,225.4,7.34]
[1759404980191,3.17862585,225.47,225.4,11.3307]
[1759404980393,7.55,225.48,225.4,11.3307]
[1759404980589,3.17743521,225.47,225.4,11.3307]
[1759404980790,7.55,225.48,225.4,11.3307]
[1759404980992,3.17743521,225.47,225.4,11.3307]
[1759404981190,7.55,225.48,225.4,11.3307]
[1759404981392,3.17739133,225.47,225.4,11.3307]
[1759404981588,11.5396,225.48,225.4,11.3307]
[1759404981793,3.17656423,225.47,225.4,11.3307]
[1759404982093,11.5396,225.48,225.4,11.3307]
[1759404982296,3.17640843,225.47,225.4,11.3307]
[1759404982490,11.5396,225.48,225.4,11.3307]
[1759404982796,7.71,225.46,225.37,9.31580776]
[1759404983092,7.71,225.44,225.37,9.31580776]
[1759404983295,7.71,225.44,225.37,7.19]
[1759404983486,11.7004,225.44,225.37,7.19]
[1759404984285,7.22,225.41,225.35,1.3596738]
[1759404984487,7.22,225.41,225.34,7.7]
[1759404984684,3.1764179,225.4,225.34,7.7]
[1759404984888,7.22,225.41,225.34,7.7]
[1759404990493,3.9907,225.42,225.36,7.7]
[1759404991088,7.22,225.42,225.36,7.7]
[1759404992495,7.22,225.45,225.36,9.0596738]
[1759404992694,3.17646633,225.44,225.39,7.7]
[1759404992895,11.2099,225.46,225.39,7.7]
[1759404993091,3.17627255,225.45,225.39,7.7]
[1759404993296,11.2099,225.46,225.39,7.7]
[1759404993501,3.17612029,225.45,225.39,7.7]
[1759404993701,11.2099,225.46,225.39,7.7]
[1759404994002,3.17612029,225.45,225.39,7.7]
[1759404994201,5.3497738,225.45,225.39,7.7]
[1759404994398,10.39602971,225.44,225.37,3.9913]
[1759404994599,7.22,225.44,225.37,3.9913]
[1759404995203,11.2103,225.44,225.37,3.9913]
[1759404995401,7.22,225.44,225.35,9.0596738]
[1759404995597,4.53582486,225.43,225.35,9.0596738]
[1759404995804,1.3596738,225.43,225.35,9.0596738]
[1759404996004,3.17624713,225.42,225.35,9.0596738]
[1759404996206,5.3501738,225.43,225.35,13.0513738]
[1759404997810,3.17676596,225.42,225.35,13.0513738]
[1759404998000,5.3501738,225.43,225.35,13.0513738]
[1759404998200,3.17676668,225.42,225.35,13.0513738]
[1759404998402,5.3501738,225.43,225.35,13.0513738]
[1759404998604,3.17709686,225.42,225.35,13.0513738]
[1759404998903,5.3501738,225.43,225.35,13.0513738]
[1759404999104,3.17709686,225.42,225.35,13.0513738]
[1759404999403,7.22,225.42,225.35,13.0513738]
[1759404999805,11.2107,225.42,225.35,11.6917]
[1759405000007,4.53726683,225.41,225.35,7.7]
[1759405000199,1.3596738,225.41,225.35,7.7]
[1759405000799,7.22,225.42,225.35,7.7]
[1759405002607,7.22,225.42,225.36,3.9915]
[1759405002903,11.2099,225.46,225.37,7.7]
[1759405003106,3.17482251,225.45,225.37,7.7]
[1759405003406,11.2099,225.46,225.37,7.7]
[1759405003407,3.17482251,225.44,225.37,7.7]
[1759405003606,3.17482251,225.43,225.38,3.9912]
[1759405003808,7.22,225.43,225.39,7.7]
[1759405006706,3.9899,225.46,225.39,7.7]
[1759405006707,7.22,225.45,225.39,7.7]
[1759405006903,7.22,225.43,225.39,7.7]
[1759405007599,7.22,225.43,225.38,3.9912]
[1759405008005,1.3596738,225.45,225.39,7.7]
[1759405008200,3.17594873,225.44,225.38,3.9912]
[1759405008406,11.2099,225.46,225.39,11.691]
[1759405008707,3.1758171,225.45,225.39,11.691]
[1759405008907,3.1758171,225.44,225.4,7.7]
[1759405009107,11.2099,225.46,225.4,7.7]
[1759405009411,3.1758171,225.45,225.39,3.991]
[1759405009606,3.1758171,225.44,225.4,7.7]
[1759405009903,11.2099,225.46,225.4,7.7]
[1759405010104,11.75543057,225.45,225.39,3.991]
[1759405010407,7.22,225.43,225.39,11.691]
[1759405011004,7.22,225.43,225.39,3.991]
[1759405011208,7.22,225.43,225.4,7.7]
[1759405012513,1.3596738,225.45,225.39,3.991]
[1759405012808,7.22,225.43,225.4,7.7]
[1759405013211,7.22,225.44,225.4,7.7]
[1759405013899,7.22,225.44,225.38,5.3508738]
[1759405014105,7.22,225.44,225.39,7.84]
[1759405014304,7.22,225.44,225.38,3.9912]
[1759405014608,7.22,225.44,225.39,7.84]
[1759405014910,7.22,225.44,225.38,5.3508738]
[1759405015106,7.22,225.44,225.39,7.84]
[1759405015613,7.22,225.44,225.38,5.3508738]
[1759405015812,7.22,225.44,225.39,7.84]
[1759405016011,7.22,225.44,225.38,5.3508738]
[1759405016410,7.22,225.44,225.39,3.991]
[1759405016612,7.22,225.44,225.4,7.84]
[1759405017109,7.22,225.44,225.39,3.991]
[1759405017304,7.22,225.44,225.4,7.84]
[1759405019116,7.22,225.44,225.39,3.991]
[1759405019317,7.22,225.44,225.4,7.84]
[1759405020416,3.17898885,225.43,225.4,7.84]
[1759405020617,3.9901,225.45,225.4,7.84]
[1759405020819,7.57,225.43,225.4,7.84]
[1759405021017,7.57,225.44,225.4,7.84]
[1759405021219,10.74898957,225.43,225.4,7.84]
[1759405021421,7.57,225.43,225.4,7.84]
[1759405022116,7.57,225.43,225.39,3.991]
[1759405022310,7.57,225.43,225.4,7.84]
[1759405023016,1.3596738,225.48,225.4,11.8308]
[1759405023216,10.74902147,225.47,225.4,11.8308]
[1759405023417,3.17902147,225.46,225.4,11.8308]
[1759405023612,3.17902147,225.45,225.41,7.84]
[1759405023810,3.17902147,225.44,225.41,7.84]
[1759405024121,7.57,225.47,225.41,7.84]
[1759405024315,3.17894493,225.46,225.41,7.84]
[1759405024517,7.57,225.47,225.4,3.9908]
[1759405024518,3.17894493,225.45,225.4,3.9908]
[1759405024721,7.57,225.47,225.41,7.84]
[1759405024919,10.74893779,225.46,225.41,7.84]
[1759405025217,3.17893779,225.45,225.41,7.84]
[1759405025420,7.57,225.46,225.41,7.84]
[1759405025629,3.17896892,225.45,225.4,3.9908]
[1759405025820,7.57,225.46,225.4,11.8308]
[1759405026117,7.57,225.46,225.4,5.3504738]
[1759405026118,3.17896892,225.45,225.4,5.3504738]
[1759405026421,7.57,225.46,225.41,7.84]
[1759405026623,3.17894085,225.45,225.41,7.84]
[1759405026823,7.57,225.46,225.4,5.3504738]
[1759405027020,3.17894085,225.45,225.4,5.3504738]
[1759405027221,7.57,225.47,225.41,7.84]
[1759405027516,7.57,225.45,225.41,7.84]
[1759405029221,11.5596,225.48,225.41,11.8306]
[1759405029415,3.17837996,225.47,225.41,11.8306]
[1759405029614,10.74837996,225.46,225.42,7.84]
[1759405029924,3.9896,225.48,225.42,7.84]
[1759405030119,7.57,225.46,225.42,7.84]
[1759405030519,7.57,225.47,225.42,7.84]
[1759405030721,7.57,225.45,225.42,7.84]
[1759405031114,11.5596,225.48,225.42,7.84]
[1759405031322,7.57,225.46,225.41,3.9906]
[1759405031620,7.57,225.47,225.41,3.9906]
[1759405031824,3.17846003,225.46,225.41,3.9906]
[1759405032123,7.57,225.45,225.42,7.84]
[1759405033419,7.57,225.45,225.41,3.9906]
[1759405033820,11.5596,225.48,225.42,7.84]
[1759405034020,7.57,225.46,225.42,7.84]
[1759405034626,7.57,225.46,225.41,3.9906]
[1759405034927,7.57,225.46,225.42,7.84]
[1759405035820,3.9897,225.47,225.42,7.84]
[1759405036025,7.57,225.45,225.42,7.84]
[1759405036221,11.5594,225.49,225.42,13.1901738]
[1759405036423,3.17965758,225.48,225.42,7.84]
[1759405036626,7.57,225.46,225.39,1.3596738]
[1759405036823,3.17965758,225.45,225.39,1.3596738]